[Event "Early-Titled-Tuesday-Blitz-September-26-2023"]
[Site "Chess.com"]
[Date "2023.09.26"]
[Round "3"]
[White "schack_vit"]
[Black "halfnatty"]
[Result "1-0"]
[WhiteElo "2455"]
[BlackElo "2531"]
[TimeControl "180+1"]
[EndTime "8:28:15 PDT"]
[Termination "schack_vit won by resignation"]

1. c4 {[%clk 0:03:00.9]} 1... c5 {[%clk 0:02:56.2]} 2. g3 {[%clk 0:03:01.3]}
2... Nc6 {[%clk 0:02:55.9]} 3. Bg2 {[%clk 0:03:01.9]} 3... g6 {[%clk 0:02:56]}
4. Nc3 {[%clk 0:03:02.8]} 4... Bg7 {[%clk 0:02:55.9]} 5. e3 {[%clk 0:03:03.5]}
5... e6 {[%clk 0:02:49.8]} 6. Nge2 {[%clk 0:03:03.7]} 6... Nge7 {[%clk
0:02:49.9]} 7. O-O {[%clk 0:03:04.2]} 7... O-O {[%clk 0:02:50]} 8. d4 {[%clk
0:03:04.7]} 8... cxd4 {[%clk 0:02:50.1]} 9. Nxd4 {[%clk 0:03:05.4]} 9... d5
{[%clk 0:02:48.8]} 10. cxd5 {[%clk 0:03:05.6]} 10... exd5 {[%clk 0:02:46.6]} 11.
Qb3 {[%clk 0:02:59.9]} 11... Nxd4 {[%clk 0:02:37.1]} 12. exd4 {[%clk 0:03:00.8]}
12... Bxd4 {[%clk 0:02:28.6]} 13. Bh6 {[%clk 0:03:00.6]} 13... Bg7 {[%clk
0:02:24.4]} 14. Bxg7 {[%clk 0:03:00.3]} 14... Kxg7 {[%clk 0:02:25.3]} 15. Nxd5
{[%clk 0:03:00.5]} 15... Nxd5 {[%clk 0:02:24.3]} 16. Qxd5 {[%clk 0:02:46.3]}
16... Qf6 {[%clk 0:02:21.2]} 17. Qb3 {[%clk 0:02:34.2]} 17... Rb8 {[%clk
0:02:11.4]} 18. Rac1 {[%clk 0:02:25.8]} 18... Be6 {[%clk 0:02:10.3]} 19. Qa3
{[%clk 0:02:24.3]} 19... a6 {[%clk 0:01:59.3]} 20. b3 {[%clk 0:02:19.3]} 20...
Rfd8 {[%clk 0:01:53.1]} 21. Rc7 {[%clk 0:02:17.8]} 21... Bd5 {[%clk 0:01:33.1]}
22. Qe7 {[%clk 0:01:53.4]} 22... Bxg2 {[%clk 0:01:24.2]} 23. Qxf6+ {[%clk
0:01:48.9]} 23... Kxf6 {[%clk 0:01:23.9]} 24. Kxg2 {[%clk 0:01:49.8]} 24... Rd2
{[%clk 0:01:21.9]} 25. a4 {[%clk 0:01:43.9]} 25... Rb2 {[%clk 0:01:18.1]} 26.
Rd1 {[%clk 0:01:33.8]} 26... Rxb3 {[%clk 0:01:13.8]} 27. Rdd7 {[%clk 0:01:33.8]}
27... Rf8 {[%clk 0:01:13.4]} 28. Rxb7 {[%clk 0:01:33.6]} 28... Rxb7 {[%clk
0:01:13.6]} 29. Rxb7 {[%clk 0:01:34.5]} 29... Re8 {[%clk 0:01:13.7]} 30. Kf3
{[%clk 0:01:23]} 30... Re5 {[%clk 0:01:10]} 31. Rb6+ {[%clk 0:01:22.1]} 31...
Re6 {[%clk 0:01:10.1]} 32. a5 {[%clk 0:01:19.8]} 32... Ke5 {[%clk 0:01:07.7]}
33. Rxe6+ {[%clk 0:01:16.6]} 33... fxe6 {[%clk 0:00:33.8]} 34. g4 {[%clk
0:01:16]} 34... g5 {[%clk 0:00:30.6]} 35. Ke3 {[%clk 0:01:10.1]} 35... h6 {[%clk
0:00:26.4]} 36. h3 {[%clk 0:00:46.7]} 36... Kd5 {[%clk 0:00:25.3]} 37. f4 {[%clk
0:00:47.1]} 37... gxf4+ {[%clk 0:00:24.6]} 38. Kxf4 {[%clk 0:00:48]} 38... Kd4
{[%clk 0:00:24.7]} 39. Kg3 {[%clk 0:00:32.5]} 39... e5 {[%clk 0:00:20.3]} 40. h4
{[%clk 0:00:32.5]} 40... Ke4 {[%clk 0:00:13.4]} 41. h5 {[%clk 0:00:26.5]} 41...
Kd5 {[%clk 0:00:12.7]} 42. g5 {[%clk 0:00:26.8]} 42... Ke6 {[%clk 0:00:08.9]}
43. g6 {[%clk 0:00:26.2]} 43... Kf6 {[%clk 0:00:09.3]} 44. Kf3 {[%clk
0:00:26.2]} 1-0

[Event "Early-Titled-Tuesday-Blitz-September-26-2023"]
[Site "Chess.com"]
[Date "2023.09.26"]
[Round "3"]
[White "FoxOnTheRun97"]
[Black "Kopytkin"]
[Result "1-0"]
[WhiteElo "2556"]
[BlackElo "2350"]
[TimeControl "180+1"]
[EndTime "8:28:15 PDT"]
[Termination "FoxOnTheRun97 won on time"]

1. d4 {[%clk 0:02:57]} 1... c5 {[%clk 0:02:36.3]} 2. d5 {[%clk 0:02:56.8]} 2...
e5 {[%clk 0:02:36.2]} 3. e4 {[%clk 0:02:56.4]} 3... d6 {[%clk 0:02:36.7]} 4. Nc3
{[%clk 0:02:55]} 4... Nd7 {[%clk 0:02:36.6]} 5. Nge2 {[%clk 0:02:51.9]} 5... g6
{[%clk 0:02:36.4]} 6. g4 {[%clk 0:02:47.8]} 6... Be7 {[%clk 0:02:07.9]} 7. Ng3
{[%clk 0:02:44]} 7... Bg5 {[%clk 0:02:07.7]} 8. Nb5 {[%clk 0:02:15.9]} 8... Be7
{[%clk 0:01:50.4]} 9. a4 {[%clk 0:02:15.2]} 9... a6 {[%clk 0:01:47.5]} 10. Na3
{[%clk 0:02:14.7]} 10... Rb8 {[%clk 0:01:44.8]} 11. Be2 {[%clk 0:02:02.2]} 11...
Ngf6 {[%clk 0:01:30.2]} 12. Bh6 {[%clk 0:01:40.1]} 12... Bf8 {[%clk 0:01:21.8]}
13. Qd2 {[%clk 0:01:25.5]} 13... Ng8 {[%clk 0:01:06.3]} 14. Be3 {[%clk
0:01:15.4]} 14... b6 {[%clk 0:00:54]} 15. O-O {[%clk 0:01:09.2]} 15... Ndf6
{[%clk 0:00:49.7]} 16. h3 {[%clk 0:01:08.2]} 16... h5 {[%clk 0:00:48.2]} 17. Kg2
{[%clk 0:01:01.3]} 17... hxg4 {[%clk 0:00:47.2]} 18. hxg4 {[%clk 0:01:02.2]}
18... Nxg4 {[%clk 0:00:44.9]} 19. Bxg4 {[%clk 0:01:00.5]} 19... Bxg4 {[%clk
0:00:44.5]} 20. Rh1 {[%clk 0:00:59.3]} 20... Rxh1 {[%clk 0:00:43.7]} 21. Rxh1
{[%clk 0:01:00.2]} 21... Qf6 {[%clk 0:00:38.6]} 22. f4 {[%clk 0:00:47.3]} 22...
exf4 {[%clk 0:00:36.4]} 23. Bxf4 {[%clk 0:00:48.2]} 23... Kd7 {[%clk 0:00:33.4]}
24. Nc4 {[%clk 0:00:44.8]} 24... g5 {[%clk 0:00:26.6]} 25. Bxg5 {[%clk
0:00:32.5]} 25... Qf3+ {[%clk 0:00:26.5]} 26. Kh2 {[%clk 0:00:33]} 26... Be7
{[%clk 0:00:21.1]} 27. Rf1 {[%clk 0:00:32.7]} 27... Nf6 {[%clk 0:00:12.4]} 28.
Rxf3 {[%clk 0:00:32]} 28... Bxf3 {[%clk 0:00:12.9]} 29. Bxf6 {[%clk 0:00:30.1]}
29... Bxf6 {[%clk 0:00:12.7]} 30. Qf4 {[%clk 0:00:30.8]} 30... Rh8+ {[%clk
0:00:12.7]} 31. Kg1 {[%clk 0:00:31.1]} 31... Bd4+ {[%clk 0:00:13]} 32. Kf1
{[%clk 0:00:30]} 32... Rh2 {[%clk 0:00:02.1]} 33. Qxf7+ {[%clk 0:00:27]} 33...
Kd8 {[%clk 0:00:02.6]} 34. Qf8+ {[%clk 0:00:26.6]} 34... Kd7 {[%clk 0:00:02.9]}
35. Qxd6+ {[%clk 0:00:26]} 35... Kc8 {[%clk 0:00:02.3]} 36. Qc6+ {[%clk
0:00:25.7]} 36... Kb8 {[%clk 0:00:02.4]} 37. Qxb6+ {[%clk 0:00:25.7]} 37... Ka8
{[%clk 0:00:02.3]} 38. Qxa6+ {[%clk 0:00:25.7]} 38... Kb8 {[%clk 0:00:02.8]} 39.
Qd6+ {[%clk 0:00:23.7]} 39... Kb7 {[%clk 0:00:03.1]} 40. Na5+ {[%clk 0:00:21.8]}
40... Ka7 {[%clk 0:00:02.9]} 41. Nc6+ {[%clk 0:00:21.3]} 1-0

[Event "Early-Titled-Tuesday-Blitz-September-26-2023"]
[Site "Chess.com"]
[Date "2023.09.26"]
[Round "3"]
[White "betta2004"]
[Black "pinguino120"]
[Result "1-0"]
[WhiteElo "2553"]
[BlackElo "2218"]
[TimeControl "180+1"]
[EndTime "8:28:16 PDT"]
[Termination "betta2004 won by resignation"]

1. d4 {[%clk 0:03:00.9]} 1... d5 {[%clk 0:02:58.3]} 2. Nc3 {[%clk 0:03:00.9]}
2... Nf6 {[%clk 0:02:53]} 3. Bf4 {[%clk 0:03:01.2]} 3... e6 {[%clk 0:02:53.3]}
4. Nb5 {[%clk 0:02:59.4]} 4... Na6 {[%clk 0:02:46.8]} 5. e3 {[%clk 0:02:57.8]}
5... c6 {[%clk 0:02:46.8]} 6. Nc3 {[%clk 0:02:57.9]} 6... Nc7 {[%clk 0:02:46.9]}
7. a3 {[%clk 0:02:57.8]} 7... Bd6 {[%clk 0:02:46.8]} 8. Nf3 {[%clk 0:02:58.5]}
8... O-O {[%clk 0:02:44.3]} 9. Bd3 {[%clk 0:02:58.8]} 9... c5 {[%clk 0:02:40.9]}
10. Ne5 {[%clk 0:02:55.2]} 10... c4 {[%clk 0:02:36.8]} 11. Be2 {[%clk
0:02:54.4]} 11... Nd7 {[%clk 0:02:31.4]} 12. O-O {[%clk 0:02:53.9]} 12... Nxe5
{[%clk 0:02:31.3]} 13. dxe5 {[%clk 0:02:52.1]} 13... Bc5 {[%clk 0:02:29.6]} 14.
e4 {[%clk 0:02:49.5]} 14... b5 {[%clk 0:02:14.3]} 15. exd5 {[%clk 0:02:49.1]}
15... exd5 {[%clk 0:02:15.2]} 16. Bf3 {[%clk 0:02:47.7]} 16... Bb7 {[%clk
0:02:15.6]} 17. b4 {[%clk 0:02:41.1]} 17... Bb6 {[%clk 0:02:11.6]} 18. a4 {[%clk
0:02:35.4]} 18... a6 {[%clk 0:02:04.3]} 19. axb5 {[%clk 0:02:34]} 19... axb5
{[%clk 0:02:04.4]} 20. Qd2 {[%clk 0:02:28.3]} 20... Qd7 {[%clk 0:02:01.2]} 21.
Ne2 {[%clk 0:02:21.1]} 21... Ne6 {[%clk 0:02:00]} 22. c3 {[%clk 0:02:18.6]}
22... Rfd8 {[%clk 0:01:47.2]} 23. Be3 {[%clk 0:01:58.4]} 23... Bxe3 {[%clk
0:01:37.6]} 24. Qxe3 {[%clk 0:01:59.3]} 24... d4 {[%clk 0:01:34.1]} 25. Nxd4
{[%clk 0:01:54.8]} 25... Nxd4 {[%clk 0:01:31.1]} 26. cxd4 {[%clk 0:01:16.7]}
26... Bxf3 {[%clk 0:01:28.4]} 27. gxf3 {[%clk 0:01:14.7]} 27... h6 {[%clk
0:01:13.7]} 28. Rxa8 {[%clk 0:00:59.7]} 28... Rxa8 {[%clk 0:01:13.4]} 29. Rd1
{[%clk 0:01:00.5]} 29... Ra4 {[%clk 0:01:07.1]} 30. d5 {[%clk 0:00:43.9]} 30...
Rxb4 {[%clk 0:01:04.6]} 31. Qc5 {[%clk 0:00:22.7]} 31... Rb3 {[%clk 0:01:04]}
32. d6 {[%clk 0:00:21.1]} 32... Rxf3 {[%clk 0:01:01.6]} 33. Qd5 {[%clk
0:00:04.5]} 33... Qg4+ {[%clk 0:00:59.9]} 34. Kf1 {[%clk 0:00:04.8]} 34... Qh3+
{[%clk 0:00:24.2]} 35. Ke1 {[%clk 0:00:04.9]} 35... Qxh2 {[%clk 0:00:19.5]} 36.
Qxf3 {[%clk 0:00:04.3]} 36... Qxe5+ {[%clk 0:00:17.8]} 37. Qe3 {[%clk
0:00:04.9]} 37... Qf6 {[%clk 0:00:10.5]} 38. d7 {[%clk 0:00:05.4]} 38... Kh7
{[%clk 0:00:10.7]} 39. d8=Q {[%clk 0:00:05.6]} 1-0

[Event "Early-Titled-Tuesday-Blitz-September-26-2023"]
[Site "Chess.com"]
[Date "2023.09.26"]
[Round "3"]
[White "Ditman2007"]
[Black "MITerryble"]
[Result "0-1"]
[WhiteElo "2675"]
[BlackElo "2943"]
[TimeControl "180+1"]
[EndTime "8:28:17 PDT"]
[Termination "MITerryble won on time"]

1. e4 {[%clk 0:02:15.8]} 1... e6 {[%clk 0:02:59.9]} 2. d4 {[%clk 0:02:15.4]}
2... d5 {[%clk 0:03:00.1]} 3. Bd3 {[%clk 0:02:15.5]} 3... dxe4 {[%clk
0:03:00.2]} 4. Bxe4 {[%clk 0:02:15.9]} 4... Nf6 {[%clk 0:03:00.7]} 5. Bf3 {[%clk
0:02:16.2]} 5... Nbd7 {[%clk 0:03:01.2]} 6. Ne2 {[%clk 0:02:15.8]} 6... e5
{[%clk 0:03:00.4]} 7. Nbc3 {[%clk 0:02:00]} 7... Bd6 {[%clk 0:02:58.3]} 8. O-O
{[%clk 0:01:59.3]} 8... O-O {[%clk 0:02:58.2]} 9. Bg5 {[%clk 0:01:57.4]} 9...
Re8 {[%clk 0:02:55.2]} 10. Ne4 {[%clk 0:01:47.9]} 10... h6 {[%clk 0:02:51.2]}
11. Nxd6 {[%clk 0:01:40.3]} 11... cxd6 {[%clk 0:02:51]} 12. Bxf6 {[%clk
0:01:40.5]} 12... Nxf6 {[%clk 0:02:24.4]} 13. dxe5 {[%clk 0:01:39.7]} 13... dxe5
{[%clk 0:02:25.3]} 14. Nc3 {[%clk 0:01:36.6]} 14... Qb6 {[%clk 0:02:23]} 15. b3
{[%clk 0:01:28.3]} 15... e4 {[%clk 0:02:19.5]} 16. Be2 {[%clk 0:01:15.9]} 16...
e3 {[%clk 0:02:15]} 17. f3 {[%clk 0:01:15]} 17... Bf5 {[%clk 0:02:13.4]} 18. Na4
{[%clk 0:01:13.2]} 18... Qc7 {[%clk 0:02:07.4]} 19. c4 {[%clk 0:00:57.3]} 19...
Rad8 {[%clk 0:02:04.9]} 20. Qe1 {[%clk 0:00:57.7]} 20... Rd2 {[%clk 0:01:58]}
21. Nc3 {[%clk 0:00:57.8]} 21... Qe5 {[%clk 0:01:50.7]} 22. Rc1 {[%clk
0:00:51.2]} 22... a6 {[%clk 0:01:47.8]} 23. a4 {[%clk 0:00:49.9]} 23... Rb2
{[%clk 0:01:40.3]} 24. Qd1 {[%clk 0:00:42.4]} 24... Rd2 {[%clk 0:01:34.1]} 25.
Qe1 {[%clk 0:00:42.5]} 25... Red8 {[%clk 0:01:34.6]} 26. b4 {[%clk 0:00:34.2]}
26... Bd3 {[%clk 0:01:32.2]} 27. Bxd3 {[%clk 0:00:22.4]} 27... R8xd3 {[%clk
0:01:33.1]} 28. Ne2 {[%clk 0:00:21.2]} 28... Rb3 {[%clk 0:01:07.3]} 29. Rd1
{[%clk 0:00:14.7]} 29... Rbb2 {[%clk 0:01:01]} 30. Rxd2 {[%clk 0:00:14.8]} 30...
exd2 {[%clk 0:01:01.4]} 31. Qd1 {[%clk 0:00:14.8]} 31... Qe3+ {[%clk 0:00:59.4]}
32. Kh1 {[%clk 0:00:15.2]} 32... Rxb4 {[%clk 0:00:55]} 33. c5 {[%clk 0:00:15.3]}
33... Nd7 {[%clk 0:00:52.4]} 34. Ng3 {[%clk 0:00:08.8]} 34... Nxc5 {[%clk
0:00:49]} 35. Qc2 {[%clk 0:00:09.1]} 35... Qd3 {[%clk 0:00:29]} 36. Qd1 {[%clk
0:00:05.8]} 36... Nxa4 {[%clk 0:00:23.3]} 37. Ne4 {[%clk 0:00:02.3]} 37... Rxe4
{[%clk 0:00:20.2]} 38. fxe4 {[%clk 0:00:02.4]} 38... Nc3 {[%clk 0:00:20.9]} 39.
Qf3 {[%clk 0:00:01.5]} 39... Qxf3 {[%clk 0:00:20.1]} 40. gxf3 {[%clk 0:00:02.4]}
40... d1=Q {[%clk 0:00:20.8]} 41. Rxd1 {[%clk 0:00:03]} 41... Nxd1 {[%clk
0:00:21.7]} 42. Kg2 {[%clk 0:00:03.6]} 42... a5 {[%clk 0:00:22]} 0-1

[Event "Early-Titled-Tuesday-Blitz-September-26-2023"]
[Site "Chess.com"]
[Date "2023.09.26"]
[Round "3"]
[White "ShahMatKanal"]
[Black "baki83"]
[Result "0-1"]
[WhiteElo "2510"]
[BlackElo "2825"]
[TimeControl "180+1"]
[EndTime "8:28:18 PDT"]
[Termination "baki83 won on time"]

1. e4 {[%clk 0:02:58.7]} 1... e5 {[%clk 0:02:58.1]} 2. Nf3 {[%clk 0:02:56.8]}
2... Nc6 {[%clk 0:02:58.5]} 3. d4 {[%clk 0:02:55.8]} 3... exd4 {[%clk 0:02:58]}
4. Bc4 {[%clk 0:02:53.2]} 4... Nf6 {[%clk 0:02:55]} 5. O-O {[%clk 0:02:52.8]}
5... Nxe4 {[%clk 0:02:48.2]} 6. Nc3 {[%clk 0:02:52.6]} 6... Nxc3 {[%clk
0:02:36.8]} 7. bxc3 {[%clk 0:01:37.6]} 7... d5 {[%clk 0:02:35.8]} 8. Re1+ {[%clk
0:01:13.5]} 8... Be7 {[%clk 0:02:34.9]} 9. Bb5 {[%clk 0:01:00.8]} 9... O-O
{[%clk 0:01:55.4]} 10. cxd4 {[%clk 0:00:57.8]} 10... Bg4 {[%clk 0:01:50.2]} 11.
c3 {[%clk 0:00:46.4]} 11... h6 {[%clk 0:01:44.4]} 12. h3 {[%clk 0:00:44.1]}
12... Bh5 {[%clk 0:01:37.3]} 13. Bd3 {[%clk 0:00:38.3]} 13... Bd6 {[%clk
0:01:33.8]} 14. Rb1 {[%clk 0:00:23.2]} 14... Rb8 {[%clk 0:01:32.1]} 15. Be2
{[%clk 0:00:20.9]} 15... Bg6 {[%clk 0:01:31.4]} 16. Bd3 {[%clk 0:00:20]} 16...
Qf6 {[%clk 0:01:28.9]} 17. a4 {[%clk 0:00:17.5]} 17... Bh5 {[%clk 0:01:28]} 18.
Be2 {[%clk 0:00:17.1]} 18... Rfe8 {[%clk 0:01:25.6]} 19. Be3 {[%clk 0:00:16.7]}
19... Bg6 {[%clk 0:01:24.6]} 20. Bd3 {[%clk 0:00:16.3]} 20... Bh5 {[%clk
0:01:25.1]} 21. Be2 {[%clk 0:00:16.4]} 21... a6 {[%clk 0:01:20.4]} 22. Qc2
{[%clk 0:00:12.4]} 22... Na5 {[%clk 0:01:16.6]} 23. Nh2 {[%clk 0:00:09.1]} 23...
Bg6 {[%clk 0:01:14]} 24. Bd3 {[%clk 0:00:08.9]} 24... Bxd3 {[%clk 0:01:12.1]}
25. Qxd3 {[%clk 0:00:09.8]} 25... Nc4 {[%clk 0:01:10.9]} 26. Ng4 {[%clk
0:00:10.1]} 26... Qg6 {[%clk 0:01:11.2]} 27. Qxg6 {[%clk 0:00:09.6]} 27... fxg6
{[%clk 0:01:11.1]} 28. Kf1 {[%clk 0:00:08.1]} 28... h5 {[%clk 0:01:09.9]} 29.
Ne5 {[%clk 0:00:05.5]} 29... Bxe5 {[%clk 0:01:09]} 30. dxe5 {[%clk 0:00:05.7]}
30... Rxe5 {[%clk 0:01:09.6]} 31. Bf4 {[%clk 0:00:06]} 31... Rf5 {[%clk
0:00:39.6]} 32. Bxc7 {[%clk 0:00:05.6]} 32... Nd2+ {[%clk 0:00:39.9]} 33. Ke2
{[%clk 0:00:05]} 33... Nxb1 {[%clk 0:00:39.8]} 34. Bxb8 {[%clk 0:00:04.1]} 34...
Nxc3+ {[%clk 0:00:39.9]} 35. Kd3 {[%clk 0:00:04.6]} 35... Nxa4 {[%clk
0:00:39.5]} 36. f3 {[%clk 0:00:04]} 36... Nc5+ {[%clk 0:00:30.6]} 37. Kd4 {[%clk
0:00:03.9]} 37... Nd7 {[%clk 0:00:29.9]} 38. Bd6 {[%clk 0:00:04.1]} 38... Rf7
{[%clk 0:00:20.3]} 39. Rb1 {[%clk 0:00:02.3]} 39... Nf6 {[%clk 0:00:19.3]} 40.
Ke5 {[%clk 0:00:01.7]} 40... Kh7 {[%clk 0:00:19]} 41. Ke6 {[%clk 0:00:01.5]}
41... Kg8 {[%clk 0:00:18.9]} 0-1

[Event "Early-Titled-Tuesday-Blitz-September-26-2023"]
[Site "Chess.com"]
[Date "2023.09.26"]
[Round "3"]
[White "GameOverBro"]
[Black "blitzo_vich"]
[Result "0-1"]
[WhiteElo "2420"]
[BlackElo "2623"]
[TimeControl "180+1"]
[EndTime "8:28:19 PDT"]
[Termination "blitzo_vich won on time"]

1. e4 {[%clk 0:03:00.9]} 1... c6 {[%clk 0:02:59.3]} 2. Nc3 {[%clk 0:03:00.7]}
2... d5 {[%clk 0:02:59.2]} 3. Nf3 {[%clk 0:03:00.8]} 3... Bg4 {[%clk 0:02:59.2]}
4. h3 {[%clk 0:03:00.3]} 4... Bxf3 {[%clk 0:02:59.1]} 5. Qxf3 {[%clk 0:03:01.2]}
5... Nf6 {[%clk 0:02:58.5]} 6. d3 {[%clk 0:03:01.1]} 6... Nbd7 {[%clk
0:02:57.5]} 7. g4 {[%clk 0:02:59.4]} 7... e6 {[%clk 0:02:47.8]} 8. g5 {[%clk
0:02:55.4]} 8... Ng8 {[%clk 0:02:35.2]} 9. h4 {[%clk 0:02:53.4]} 9... Bd6 {[%clk
0:02:28.3]} 10. h5 {[%clk 0:02:52.3]} 10... Ne7 {[%clk 0:02:25.9]} 11. Bh3
{[%clk 0:02:50.9]} 11... Ne5 {[%clk 0:02:23.7]} 12. Qg2 {[%clk 0:02:43.3]} 12...
Qb6 {[%clk 0:02:17.8]} 13. f4 {[%clk 0:02:37.4]} 13... Nd7 {[%clk 0:02:15.5]}
14. a3 {[%clk 0:01:01.6]} 14... O-O-O {[%clk 0:02:07.4]} 15. b4 {[%clk
0:00:52.2]} 15... Qd4 {[%clk 0:02:00.3]} 16. Bb2 {[%clk 0:00:52.1]} 16... Bxf4
{[%clk 0:01:56.3]} 17. Nd1 {[%clk 0:00:30.1]} 17... Qb6 {[%clk 0:01:52.1]} 18.
Bxg7 {[%clk 0:00:28]} 18... Rhg8 {[%clk 0:01:51.1]} 19. h6 {[%clk 0:00:27.2]}
19... Be5 {[%clk 0:01:43.2]} 20. c3 {[%clk 0:00:16.1]} 20... Bxg7 {[%clk
0:01:41.6]} 21. hxg7 {[%clk 0:00:17]} 21... Rxg7 {[%clk 0:01:40.7]} 22. Nf2
{[%clk 0:00:15.8]} 22... Ne5 {[%clk 0:01:38.6]} 23. O-O-O {[%clk 0:00:15.1]}
23... Qe3+ {[%clk 0:01:24]} 24. Rd2 {[%clk 0:00:13.6]} 24... Nf3 {[%clk
0:01:17.9]} 25. Nd1 {[%clk 0:00:10.3]} 25... Qxd2+ {[%clk 0:01:17.6]} 26. Qxd2
{[%clk 0:00:11.2]} 26... Nxd2 {[%clk 0:01:17.7]} 27. Kxd2 {[%clk 0:00:11.5]}
27... dxe4 {[%clk 0:01:18]} 28. d4 {[%clk 0:00:11.9]} 28... Rxg5 {[%clk
0:01:17.3]} 29. Bf1 {[%clk 0:00:11.7]} 29... h5 {[%clk 0:01:16]} 30. Ne3 {[%clk
0:00:11.8]} 30... f5 {[%clk 0:01:15.4]} 31. Nc4 {[%clk 0:00:11.8]} 31... Ng6
{[%clk 0:01:11.7]} 32. Ke3 {[%clk 0:00:11.8]} 32... Rg3+ {[%clk 0:01:10.9]} 33.
Kd2 {[%clk 0:00:10.4]} 33... h4 {[%clk 0:01:08.5]} 34. Be2 {[%clk 0:00:10.5]}
34... e5 {[%clk 0:01:08.2]} 35. Bh5 {[%clk 0:00:10.3]} 35... Nf4 {[%clk
0:01:08.2]} 36. Rxh4 {[%clk 0:00:04.1]} 36... Rg2+ {[%clk 0:01:07.2]} 37. Kc1
{[%clk 0:00:03.2]} 37... Nd3+ {[%clk 0:01:05.8]} 38. Kb1 {[%clk 0:00:03]} 38...
exd4 {[%clk 0:01:02.7]} 39. cxd4 {[%clk 0:00:03.1]} 39... Rxd4 {[%clk
0:00:59.6]} 40. Bf7 {[%clk 0:00:03.8]} 40... Rg7 {[%clk 0:00:52.1]} 41. Be6+
{[%clk 0:00:04.3]} 41... Kc7 {[%clk 0:00:51.6]} 42. Rh8 {[%clk 0:00:04.8]} 42...
Rdd7 {[%clk 0:00:43.7]} 43. Bxf5 {[%clk 0:00:04.3]} 43... Rd8 {[%clk 0:00:39.1]}
44. Rh3 {[%clk 0:00:02.1]} 44... Re7 {[%clk 0:00:33.4]} 45. Ne3 {[%clk 0:00:02]}
45... Nf4 {[%clk 0:00:32.7]} 46. Rh4 {[%clk 0:00:01.5]} 46... Nd5 {[%clk
0:00:32.8]} 0-1

[Event "Early-Titled-Tuesday-Blitz-September-26-2023"]
[Site "Chess.com"]
[Date "2023.09.26"]
[Round "3"]
[White "Mops_2004"]
[Black "IamSchrodingersCat"]
[Result "1-0"]
[WhiteElo "2765"]
[BlackElo "2506"]
[TimeControl "180+1"]
[EndTime "8:28:20 PDT"]
[Termination "Mops_2004 won on time"]

1. g3 {[%clk 0:03:00.9]} 1... Nf6 {[%clk 0:02:59.5]} 2. Bg2 {[%clk 0:03:00.3]}
2... g6 {[%clk 0:02:59.8]} 3. d4 {[%clk 0:03:00]} 3... Bg7 {[%clk 0:02:59.3]} 4.
e4 {[%clk 0:03:00.3]} 4... d6 {[%clk 0:02:59.2]} 5. Nc3 {[%clk 0:03:00.7]} 5...
O-O {[%clk 0:02:59.2]} 6. Nf3 {[%clk 0:03:01.1]} 6... e5 {[%clk 0:02:53.1]} 7.
O-O {[%clk 0:02:58.9]} 7... exd4 {[%clk 0:02:52.5]} 8. Nxd4 {[%clk 0:02:58.9]}
8... Re8 {[%clk 0:02:53.4]} 9. h3 {[%clk 0:02:58]} 9... Nbd7 {[%clk 0:02:50]}
10. Re1 {[%clk 0:02:57.6]} 10... a6 {[%clk 0:02:48]} 11. Bf4 {[%clk 0:02:47.9]}
11... Rb8 {[%clk 0:02:38]} 12. g4 {[%clk 0:02:39.2]} 12... Ne5 {[%clk 0:02:10]}
13. Bg3 {[%clk 0:02:39.1]} 13... h5 {[%clk 0:01:49.5]} 14. g5 {[%clk 0:02:36.3]}
14... Nfd7 {[%clk 0:01:43.4]} 15. f4 {[%clk 0:02:36.3]} 15... Nc6 {[%clk
0:01:40.2]} 16. Nb3 {[%clk 0:02:34.5]} 16... Nb6 {[%clk 0:01:00.6]} 17. Rb1
{[%clk 0:02:20.2]} 17... Nc4 {[%clk 0:00:51]} 18. Qd3 {[%clk 0:02:16.8]} 18...
b5 {[%clk 0:00:45.1]} 19. a3 {[%clk 0:02:13.3]} 19... Bb7 {[%clk 0:00:36.6]} 20.
Kh2 {[%clk 0:02:02.3]} 20... Ba8 {[%clk 0:00:33.5]} 21. h4 {[%clk 0:01:56.3]}
21... a5 {[%clk 0:00:32.1]} 22. Nd2 {[%clk 0:01:36.3]} 22... Nxd2 {[%clk
0:00:27.7]} 23. Qxd2 {[%clk 0:01:37.2]} 23... Nd4 {[%clk 0:00:19.1]} 24. Nd1
{[%clk 0:01:24.7]} 24... c5 {[%clk 0:00:17.1]} 25. Nf2 {[%clk 0:01:17.7]} 25...
b4 {[%clk 0:00:16.9]} 26. axb4 {[%clk 0:01:04.2]} 26... axb4 {[%clk 0:00:17.8]}
27. c3 {[%clk 0:01:01.7]} 27... bxc3 {[%clk 0:00:14.8]} 28. bxc3 {[%clk
0:01:02.6]} 28... Nb5 {[%clk 0:00:14.6]} 29. Rbc1 {[%clk 0:00:54.8]} 29... Qc7
{[%clk 0:00:12.1]} 30. f5 {[%clk 0:00:43]} 30... Be5 {[%clk 0:00:11.9]} 31. Bxe5
{[%clk 0:00:38.8]} 31... dxe5 {[%clk 0:00:11.4]} 32. Qe3 {[%clk 0:00:32]} 32...
c4 {[%clk 0:00:10]} 33. Ra1 {[%clk 0:00:24.6]} 33... Bc6 {[%clk 0:00:09.4]} 34.
Re2 {[%clk 0:00:20.6]} 34... Rbd8 {[%clk 0:00:09.3]} 35. Rea2 {[%clk 0:00:20.5]}
35... Qd6 {[%clk 0:00:07.4]} 36. Ra6 {[%clk 0:00:19.6]} 36... Qd7 {[%clk
0:00:05.6]} 37. Bh3 {[%clk 0:00:18.8]} 37... Qc7 {[%clk 0:00:05.1]} 38. Qc5
{[%clk 0:00:17.9]} 38... Rd2 {[%clk 0:00:04.7]} 39. Kg3 {[%clk 0:00:16.1]} 39...
Bb7 {[%clk 0:00:03.1]} 40. Qxb5 {[%clk 0:00:14.7]} 40... Red8 {[%clk 0:00:02.7]}
41. Ra7 {[%clk 0:00:13.5]} 1-0